bitfinex/quotes_BTCUSD_20251116
["timestamp","ask_amount","ask_price","bid_price","bid_amount"]
[1763308183301,0.71771192,95391.0,95390.0,0.0007017]
[1763308183484,0.71671192,95391.0,95390.0,0.0007017]
[1763308183689,0.71571192,95391.0,95390.0,0.0007017]
[1763308183920,0.71671192,95391.0,95390.0,0.0007017]
[1763308184667,0.71771192,95391.0,95390.0,0.0007017]
[1763308185478,0.96361192,95391.0,95390.0,0.0007017]
[1763308187779,0.91919318,95391.0,95390.0,0.0007017]
[1763308188151,0.96261192,95391.0,95390.0,0.0007017]
[1763308188354,0.96361192,95391.0,95390.0,0.0007017]
[1763308193448,0.79382042,95391.0,95390.0,0.0007017]
[1763308193648,0.81828042,95391.0,95390.0,0.0007017]
[1763308193880,0.81828044,95391.0,95390.0,0.0007017]
[1763308194070,0.808498,95391.0,95390.0,0.0007017]
[1763308195350,0.81828229,95391.0,95390.0,0.0007017]
[1763308195757,0.808498,95391.0,95390.0,0.0007017]
[1763308196405,0.81827998,95391.0,95390.0,0.0007017]
[1763308201311,0.84088894,95391.0,95390.0,0.0007017]
[1763308201934,0.66466286,95391.0,95390.0,0.0007017]
[1763308202168,0.68044286,95391.0,95390.0,0.0007017]
[1763308202401,0.67944286,95391.0,95390.0,1e-08]
[1763308202753,0.67844286,95391.0,95390.0,1e-08]
[1763308203360,0.67944286,95391.0,95390.0,1e-08]
[1763308203761,0.68044286,95391.0,95390.0,4.001e-05]
[1763308204005,1.00244286,95391.0,95390.0,4.001e-05]
[1763308204206,1.00144286,95391.0,95390.0,4.001e-05]
[1763308204420,1.00244286,95391.0,95390.0,4.001e-05]
[1763308204586,1.00344286,95391.0,95390.0,4.001e-05]
[1763308204759,1.02050411,95391.0,95390.0,4.001e-05]
[1763308205126,1.00344286,95391.0,95390.0,4.001e-05]
[1763308206890,1.00344286,95391.0,95390.0,1e-08]
[1763308208654,0.20972934,95361.0,95360.0,0.0004]
[1763308208859,0.57788776,95361.0,95360.0,0.0004]
[1763308209300,0.58994776,95361.0,95360.0,0.0004]
[1763308209908,0.58994776,95361.0,95360.0,0.00084822]
[1763308210729,0.26694776,95361.0,95360.0,0.00084822]
[1763308210933,0.25488776,95361.0,95360.0,0.00084822]
[1763308211130,0.23910776,95361.0,95360.0,0.00084822]
[1763308211332,0.23913356,95361.0,95360.0,0.00084822]
[1763308211776,0.23913328,95361.0,95360.0,0.00084822]
[1763308211986,0.23913333,95361.0,95360.0,0.00084822]
[1763308212180,0.02940399,95361.0,95360.0,0.00084822]
[1763308212384,0.22932578,95361.0,95360.0,0.00084822]
[1763308212617,0.22932578,95361.0,95360.0,0.02465822]
[1763308212951,0.01959644,95361.0,95360.0,0.00084822]
[1763308213360,0.01959644,95361.0,95360.0,0.02465822]
[1763308213565,0.01959644,95361.0,95360.0,0.00084822]
[1763308214154,0.01959644,95361.0,95360.0,0.00167124]
[1763308214952,0.20971015,95370.0,95369.0,0.01198]
[1763308215157,0.22932472,95370.0,95369.0,0.01198]
[1763308215365,0.22932472,95370.0,95369.0,0.01255609]
[1763308215993,0.01961457,95370.0,95369.0,0.01255609]
[1763308216199,0.22932476,95370.0,95369.0,0.01255609]
[1763308216397,0.01961521,95370.0,95369.0,0.01255609]
[1763308217136,0.22932476,95370.0,95369.0,0.01255609]
[1763308218324,0.01961521,95370.0,95369.0,0.01255609]
[1763308218532,0.01961521,95370.0,95369.0,0.03739609]
[1763308219713,0.01961521,95370.0,95369.0,0.01255609]
[1763308221743,0.01961521,95370.0,95369.0,0.00057609]
[1763308221744,0.22932476,95370.0,95369.0,0.00057609]
[1763308221961,0.56768476,95370.0,95369.0,0.00057609]
[1763308222327,0.59252476,95370.0,95369.0,0.00057609]
[1763308224128,0.57716476,95370.0,95369.0,0.00057609]
[1763308224893,0.59252476,95370.0,95369.0,0.00057609]
[1763308226024,0.57716476,95370.0,95369.0,0.00057609]
[1763308226456,0.59252476,95370.0,95369.0,0.00057609]
[1763308233293,0.3632,95370.0,95369.0,0.00057609]
[1763308233499,0.55754955,95370.0,95369.0,0.00057609]
[1763308233712,0.55754955,95370.0,95369.0,0.01201609]
[1763308233915,0.53270955,95370.0,95369.0,0.00057609]
[1763308234744,0.53270955,95370.0,95369.0,0.00061609]
[1763308237586,0.32456641,95370.0,95369.0,0.00061609]
[1763308237721,0.20970955,95370.0,95369.0,0.00061609]
[1763308238329,0.09935212,95371.0,95369.0,0.00061609]
[1763308238609,0.20970955,95370.0,95369.0,4e-05]
[1763308242009,0.20969611,95377.0,95369.0,4e-05]
[1763308242010,0.2096897,95380.0,95378.0,0.0256]
[1763308242208,0.2096897,95380.0,95378.0,0.01025]
[1763308242693,0.20968097,95383.0,95378.0,0.01025]
[1763308242891,0.09935212,95391.0,95378.0,0.03328]
[1763308242892,0.20967657,95385.0,95378.0,0.03328]
[1763308243101,0.09935212,95391.0,95379.0,0.02303]
[1763308243102,0.20968769,95380.0,95379.0,0.02303]
[1763308243750,0.2097087,95371.0,95370.0,0.00054866]
[1763308245452,0.3090592,95372.0,95370.0,0.00054866]
[1763308245659,0.20970955,95370.0,95369.0,4e-05]
[1763308246622,0.20970955,95370.0,95369.0,0.01148]
[1763308246817,0.20968894,95380.0,95369.0,0.01205609]
[1763308247018,0.09935212,95374.0,95370.0,0.02303]
[1763308247260,0.20970547,95372.0,95370.0,0.02303]
[1763308247461,0.30905401,95374.0,95370.0,0.02303]
[1763308247838,0.09935212,95374.0,95370.0,0.02303]
[1763308249225,0.20970295,95373.0,95370.0,0.02303]
[1763308249776,0.09935212,95374.0,95370.0,0.02303]
[1763308249992,0.09935212,95372.0,95370.0,0.02303]
[1763308250217,1.49492365,95380.0,95379.0,0.02679]
[1763308250641,1.70461121,95380.0,95379.0,0.02679]
[1763308251169,1.70461121,95380.0,95379.0,0.01144]
[1763308251377,0.20970833,95371.0,95369.0,0.01148]
[1763308251606,0.09935212,95370.0,95369.0,0.01148]
[1763308253621,0.20970833,95371.0,95369.0,0.01148]
[1763308253992,0.20970833,95371.0,95370.0,0.00054866]
[1763308254412,0.20969302,95378.0,95370.0,0.00054866]
[1763308254636,0.20970735,95371.0,95369.0,0.01148]
[1763308261127,0.00843,95370.0,95369.0,4e-05]
[1763308261282,0.02343,95370.0,95369.0,4e-05]
[1763308261491,0.34643,95370.0,95369.0,0.00061609]
[1763308262162,0.36605058,95370.0,95369.0,0.00061609]
[1763308264854,0.40946932,95370.0,95369.0,0.00061609]
[1763308265261,0.40946932,95370.0,95360.0,0.00084822]
[1763308265262,0.57614808,95361.0,95360.0,0.00084822]
[1763308265505,0.61084866,95361.0,95360.0,0.00084822]
[1763308265713,0.63350094,95361.0,95360.0,0.00084822]
[1763308265880,0.64329626,95361.0,95360.0,0.00084822]
[1763308266402,0.61084866,95361.0,95360.0,0.00084822]
[1763308268143,0.61184866,95361.0,95360.0,0.00084822]
[1763308268476,0.61284866,95361.0,95360.0,0.00084822]
[1763308271168,0.62465866,95361.0,95360.0,0.00084822]
[1763308271389,0.62465866,95361.0,95360.0,0.0010953]
[1763308274693,0.62365866,95361.0,95360.0,0.0010953]
[1763308274947,0.62465866,95361.0,95360.0,0.0010953]
[1763308275255,0.60403808,95361.0,95360.0,0.0010953]
[1763308275458,0.62356978,95361.0,95360.0,0.0010953]
[1763308275910,0.62456978,95361.0,95360.0,0.0010953]
[1763308276308,0.87046978,95361.0,95360.0,0.0010953]
[1763308276780,0.36641874,95360.0,95321.0,0.01181]
[1763308276988,0.65538345,95351.0,95315.0,9e-05]
[1763308277127,0.71833389,95351.0,95315.0,9e-05]
[1763308277532,0.71833389,95351.0,95321.0,0.01192]
[1763308277736,0.71833389,95351.0,95329.0,0.0096]
[1763308278198,0.71933389,95351.0,95329.0,0.0096]
[1763308278833,0.72033389,95351.0,95329.0,0.0096]
[1763308279234,0.72033389,95351.0,95321.0,0.01192]
[1763308279404,0.71933389,95351.0,95321.0,0.01192]
[1763308279631,0.72033389,95351.0,95321.0,0.01192]
[1763308279833,0.72033389,95351.0,95321.0,0.22173624]
[1763308280034,0.71933389,95351.0,95321.0,0.01192]
[1763308280257,0.72033389,95351.0,95321.0,0.01192]
[1763308281594,0.81334174,95351.0,95321.0,0.01192]
[1763308281808,0.72033389,95351.0,95321.0,0.01192]
[1763308282442,0.73225389,95351.0,95350.0,0.00071446]
[1763308287342,0.71272219,95351.0,95350.0,0.00071446]
[1763308287542,0.7322675,95351.0,95350.0,0.00071446]
[1763308290744,0.67381876,95351.0,95350.0,0.00071446]
[1763308291046,0.34256876,95351.0,95350.0,0.00071446]
[1763308291729,0.68205876,95351.0,95350.0,0.00071446]
[1763308291939,0.68105876,95351.0,95350.0,0.00071446]
[1763308292724,0.68005876,95351.0,95350.0,0.00071446]
[1763308293033,0.66456876,95351.0,95350.0,0.00071446]
[1763308293707,0.66356876,95351.0,95350.0,0.00071446]
[1763308294696,0.65164876,95351.0,95350.0,0.00071446]
[1763308300924,0.44189743,95351.0,95350.0,0.00071446]
[1763308303280,0.44195075,95351.0,95350.0,0.00071446]
[1763308304129,0.45020075,95351.0,95350.0,0.00071446]
[1763308304343,0.46669075,95351.0,95350.0,0.00071446]
[1763308304555,0.44195075,95351.0,95350.0,0.00071446]
[1763308306657,0.45020075,95351.0,95350.0,0.00071446]
[1763308307758,0.44195075,95351.0,95350.0,0.00071446]
[1763308308209,0.65170208,95351.0,95350.0,0.00071446]
[1763308308634,0.01959863,95351.0,95350.0,0.00071446]
[1763308308837,0.00045072,95360.0,95359.0,0.0275]
[1763308309173,0.02004981,95360.0,95359.0,0.22148374]
[1763308309374,0.00045072,95360.0,95359.0,0.22148374]
[1763308311852,1.49492365,95380.0,95359.0,0.22148374]
[1763308311853,1.49492365,95380.0,95379.0,0.20968976]
[1763308312058,1.49492365,95380.0,95379.0,0.23343416]
[1763308312215,1.49492365,95380.0,95379.0,0.0079944]
[1763308315004,1.49492365,95380.0,95379.0,0.0089944]
[1763308315207,1.49492365,95380.0,95379.0,0.0010944]
[1763308315406,1.51975365,95380.0,95379.0,0.0010944]
[1763308316012,1.63862708,95380.0,95379.0,0.0010944]
[1763308316399,1.96162708,95380.0,95379.0,0.0010944]
[1763308316653,2.00504582,95380.0,95379.0,0.0010944]
[1763308317282,2.00504582,95380.0,95379.0,9.44e-05]
[1763308318053,1.61379708,95380.0,95379.0,9.44e-05]
[1763308318257,1.59527577,95380.0,95379.0,9.44e-05]
[1763308318464,1.61176577,95380.0,95379.0,9.44e-05]
[1763308318666,1.59427577,95380.0,95379.0,9.44e-05]
[1763308319383,1.59527577,95380.0,95379.0,9.44e-05]
[1763308319549,1.59427577,95380.0,95379.0,9.44e-05]
[1763308320264,1.61076577,95380.0,95379.0,9.44e-05]
[1763308320512,1.93376577,95380.0,95379.0,9.44e-05]
[1763308320695,1.95328681,95380.0,95379.0,9.44e-05]
[1763308321554,1.95428681,95380.0,95379.0,9.44e-05]
[1763308321992,1.95328681,95380.0,95379.0,9.44e-05]
[1763308322371,1.95428681,95380.0,95379.0,9.44e-05]
[1763308322796,1.95428681,95380.0,95379.0,0.0001344]
[1763308326458,1.96603681,95380.0,95379.0,0.0001344]
[1763308332316,1.96603681,95380.0,95350.0,0.00044]
[1763308332317,0.20974914,95352.0,95350.0,0.00044]
[1763308332664,0.66733894,95352.0,95350.0,0.00044]
[1763308334402,0.71075768,95352.0,95350.0,0.00044]
[1763308337174,0.71175768,95352.0,95350.0,0.00044]
[1763308338183,0.71275768,95352.0,95350.0,0.00044]
[1763308338385,0.71075768,95352.0,95350.0,0.00044]
[1763308338716,0.71175768,95352.0,95350.0,0.00044]
[1763308338876,0.71275768,95352.0,95350.0,0.00044]
[1763308339078,0.71175768,95352.0,95350.0,0.00044]
[1763308339403,0.71275768,95352.0,95350.0,0.00044]
[1763308341221,0.71175768,95352.0,95350.0,0.00044]
[1763308341462,0.71169154,95352.0,95350.0,0.00044]
[1763308341883,0.71269154,95352.0,95350.0,0.00044]
[1763308342814,0.72444154,95352.0,95350.0,0.00044]
[1763308343025,0.5146924,95352.0,95350.0,0.00044]
[1763308343210,0.72486154,95352.0,95350.0,0.00044]
[1763308346518,0.72386154,95352.0,95350.0,0.00044]
[1763308347534,0.72286154,95352.0,95350.0,0.00044]
[1763308347742,0.72386154,95352.0,95350.0,0.00044]
[1763308347946,0.72486154,95352.0,95350.0,0.00044]
[1763308348358,0.40186154,95352.0,95350.0,0.00044]
[1763308348835,0.72488127,95352.0,95350.0,0.00044]
[1763308354256,0.7249048,95352.0,95350.0,0.00044]
[1763308356229,0.73465837,95352.0,95350.0,0.00044]
[1763308356818,0.7249048,95352.0,95350.0,0.00044]
[1763308357359,0.73466127,95352.0,95350.0,0.00044]
[1763308358223,0.73366127,95352.0,95350.0,0.00044]
[1763308358436,0.73466127,95352.0,95350.0,0.00044]
[1763308358582,0.9795911,95352.0,95350.0,0.00044]
[1763308359533,1.00221356,95352.0,95350.0,0.00044]
[1763308360100,1.00321356,95352.0,95350.0,0.00044]
[1763308360307,0.80981619,95352.0,95350.0,0.00044]
[1763308360516,0.78661273,95352.0,95350.0,0.00044]
[1763308360720,0.7971037,95352.0,95350.0,0.00044]
[1763308361018,0.7961037,95352.0,95350.0,0.00044]
[1763308361333,0.81875211,95352.0,95350.0,0.00044]
[1763308361854,0.81975211,95352.0,95350.0,0.00044]
[1763308362014,0.7971037,95352.0,95350.0,0.00044]
[1763308362218,0.81975289,95352.0,95350.0,0.00044]
[1763308362403,0.86317163,95352.0,95350.0,0.00044]
[1763308362612,0.20982836,95316.0,95310.0,0.0004]
[1763308362837,0.22940354,95316.0,95310.0,0.0004]
[1763308363041,0.24483354,95316.0,95315.0,0.00107826]
[1763308363246,0.22940354,95316.0,95315.0,0.00107826]
[1763308363858,0.22949331,95316.0,95315.0,0.00107826]
[1763308366770,0.24492331,95316.0,95315.0,0.00107826]
[1763308368427,0.22949331,95316.0,95315.0,0.00107826]
[1763308369660,0.01966495,95316.0,95315.0,0.00107826]
[1763308369874,0.22949331,95316.0,95315.0,0.00107826]
[1763308370351,0.22949331,95316.0,95315.0,0.02534826]
[1763308370352,0.01966495,95316.0,95315.0,0.02534826]
[1763308370723,0.11901707,95316.0,95315.0,0.02534826]
[1763308370878,0.11901707,95316.0,95315.0,0.00107826]
[1763308371406,0.11901707,95316.0,95315.0,0.02534826]
[1763308371805,0.11901707,95316.0,95315.0,0.00107826]
[1763308375293,0.45744707,95316.0,95315.0,0.00107826]
[1763308376932,0.44201707,95316.0,95315.0,0.00107826]
[1763308377187,0.45744707,95316.0,95315.0,0.00107826]
[1763308377425,0.44201707,95316.0,95315.0,0.00107826]
[1763308378447,0.45744707,95316.0,95315.0,0.00107826]
[1763308386574,0.49891553,95316.0,95315.0,0.00107826]
[1763308386781,0.54233427,95316.0,95315.0,0.00107826]
[1763308387187,0.50086581,95316.0,95315.0,0.00107826]
[1763308387387,0.53327489,95316.0,95315.0,0.00107826]
[1763308387590,0.5762515,95314.0,95313.0,0.3]
[1763308387800,0.64382576,95314.0,95313.0,0.3]
[1763308389006,0.61141668,95314.0,95313.0,0.3]
[1763308390108,0.74747828,95314.0,95313.0,0.18076219]
[1763308390310,0.6438089,95314.0,95313.0,0.18076219]
[1763308391102,0.63404976,95314.0,95313.0,0.18076219]
[1763308391307,0.61141668,95314.0,95313.0,0.18076219]
[1763308391503,0.64380711,95314.0,95313.0,0.18076219]
[1763308391703,0.5762581,95311.0,95310.0,0.0004]
[1763308391951,0.61142328,95311.0,95310.0,0.0004]
[1763308392335,0.71509266,95311.0,95310.0,0.0004]
[1763308392671,0.61142328,95311.0,95310.0,0.0004]
[1763308393332,0.6340534,95311.0,95310.0,0.0004]
[1763308393686,0.8897119,95311.0,95310.0,0.0004]
[1763308394108,0.20984817,95307.0,95306.0,0.00024741]
[1763308394311,0.20984817,95307.0,95290.0,0.0004]
[1763308394312,0.57628453,95300.0,95290.0,0.0004]
[1763308394521,0.70236426,95291.0,95290.0,0.0004]
[1763308394666,0.72193944,95291.0,95290.0,0.0004]
[1763308395082,0.75348145,95291.0,95290.0,0.0004]
[1763308396784,0.75348145,95291.0,95290.0,0.00044]
[1763308397625,0.8498172,95291.0,95290.0,0.00044]
[1763308397831,0.75348145,95291.0,95290.0,0.00044]
[1763308398260,0.75348145,95291.0,95290.0,0.00048]
[1763308398470,0.75348145,95291.0,95290.0,0.00052]
[1763308398641,0.75348145,95291.0,95290.0,0.00056]
[1763308399040,0.75348145,95291.0,95290.0,1e-08]
[1763308399273,0.88215337,95291.0,95290.0,1e-08]
[1763308399440,0.88215337,95291.0,95260.0,0.0004]
[1763308399441,0.5329495,95261.0,95260.0,0.0004]
[1763308399796,0.323,95252.0,95241.0,0.00784]
[1763308400126,0.323,95249.0,95241.0,0.00784]
[1763308400398,0.323,95249.0,95231.0,0.0045]
[1763308400399,0.01957518,95248.0,95231.0,0.0045]
[1763308400602,0.323,95249.0,95239.0,0.22243591]
[1763308400603,0.01957518,95247.0,95239.0,0.22243591]
[1763308400800,0.03430758,95260.0,95239.0,0.22243591]
[1763308400801,0.01957518,95246.0,95239.0,0.01244]
[1763308401047,0.01957518,95245.0,95243.0,0.20998918]
[1763308401247,0.20996493,95254.0,95240.0,0.02465]
[1763308401424,0.09935212,95241.0,95239.0,0.01244]
[1763308401657,0.09935212,95241.0,95240.0,0.2099958]
[1763308401927,0.01049758,95260.0,95248.0,0.01557]
[1763308402166,0.01945048,95259.0,95249.0,0.01557]
[1763308402370,0.20998201,95247.0,95241.0,0.02465]
[1763308402591,0.09935212,95242.0,95241.0,0.02465]
[1763308402801,0.33412,95259.0,95248.0,0.20997635]
[1763308402992,0.01944511,95258.0,95250.0,0.01557]
[1763308403199,0.01944511,95258.0,95249.0,0.56845899]
[1763308403505,0.01944511,95258.0,95242.0,0.02465]
[1763308403506,0.01112,95257.0,95242.0,0.02465]
[1763308403679,0.20998218,95247.0,95242.0,0.02465]
[1763308403919,0.01944106,95246.0,95242.0,0.02465]
[1763308404072,0.323,95253.0,95242.0,0.02465]
[1763308404271,0.01944267,95252.0,95242.0,0.02465]
[1763308404453,0.20997154,95251.0,95242.0,0.02465]
[1763308404674,0.09935212,95248.0,95243.0,0.02099891]
[1763308404876,0.323,95256.0,95249.0,0.20997447]
[1763308405103,0.01943862,95255.0,95250.0,0.02099737]
[1763308405314,0.01943862,95254.0,95253.0,0.20996714]
[1763308405505,0.09935212,95263.0,95262.0,0.02801]
[1763308405671,0.11879566,95263.0,95262.0,0.05266]
[1763308405876,0.01944354,95263.0,95262.0,0.05266]
[1763308406087,0.01944354,95263.0,95262.0,0.01244]
[1763308406286,0.09935212,95272.0,95271.0,0.01557]
[1763308406481,0.11880257,95272.0,95271.0,0.01557]
[1763308406819,0.13486257,95272.0,95271.0,0.00045072]
[1763308407312,0.45786257,95272.0,95271.0,0.00045072]
[1763308407813,0.50128131,95272.0,95271.0,0.00045072]
[1763308408092,0.57634621,95271.0,95253.0,0.00012]
[1763308408283,0.65948705,95254.0,95253.0,0.00012]
[1763308408541,0.6789375,95254.0,95253.0,0.00012]
[1763308408981,0.5329958,95240.0,95239.0,0.00024]
[1763308409201,0.56850625,95240.0,95239.0,0.00024]
[1763308409871,0.53305976,95211.0,95210.0,0.0004]
[1763308410091,0.57799021,95211.0,95210.0,0.0004]
[1763308410329,0.57844035,95211.0,95210.0,0.0004]
[1763308410568,0.68210973,95211.0,95130.0,0.00999999]
[1763308410847,0.68210973,95211.0,95058.0,0.37681533]
[1763308410848,0.47204997,95211.0,95058.0,0.37681533]
[1763308411083,0.47204997,95211.0,95001.0,70.01244]
[1763308411084,0.47204997,95211.0,95000.0,30.2986204]
[1763308411085,2.54766391,95140.0,95000.0,30.2986204]
[1763308411334,0.21052409,95001.0,95000.0,11.51392937]
[1763308411576,2.34037454,95001.0,95000.0,7.87448251]
[1763308411801,2.34037454,95001.0,95000.0,0.3543181]
[1763308411802,0.83104421,95001.0,95000.0,0.3543181]
[1763308412037,0.21077258,94889.0,94888.0,9.94921501]
[1763308412323,0.23314092,94889.0,94888.0,9.94921501]
[1763308412554,0.04389325,94889.0,94888.0,9.94921501]
[1763308412790,0.05449516,94889.0,94888.0,9.94921501]
[1763308413016,0.18840766,94891.0,94889.0,0.02422]
[1763308413251,0.21077036,94890.0,94889.0,0.00013519]
[1763308413481,0.09185898,94892.0,94889.0,0.02435519]
[1763308413728,0.03168664,94894.0,94889.0,0.02435519]
[1763308413988,0.53371584,94915.0,94889.0,0.02435519]
[1763308413989,0.09935212,94892.0,94889.0,0.02435519]
[1763308414232,0.01999998,94900.0,94889.0,0.02435519]
[1763308414452,0.01999998,94900.0,94888.0,6.79503573]
[1763308414453,0.21076594,94892.0,94888.0,6.79503573]
[1763308414675,0.0001342,94892.0,94829.0,0.01239]
[1763308414894,0.0001342,94892.0,94787.0,0.01239]
[1763308414895,0.02742952,94835.0,94830.0,0.11118836]
[1763308415120,0.03657269,94834.0,94830.0,0.055878]
[1763308415342,0.01999998,94860.0,94830.0,0.055878]
[1763308415343,0.02728565,94840.0,94831.0,0.0316919]
[1763308415562,0.02728565,94836.0,94831.0,0.0316919]
[1763308415792,0.02728565,94835.0,94832.0,0.02422]
[1763308416004,0.02728565,94839.0,94832.0,0.02422]
[1763308416235,0.00013405,94835.0,94832.0,0.02422]
[1763308416445,0.00013405,94835.0,94834.0,0.323]
[1763308416666,0.26562775,94891.0,94834.0,0.323]
[1763308416668,0.05485904,94898.0,94868.0,0.01239]
[1763308416872,0.00013537,94898.0,94890.0,0.00999999]
[1763308417075,0.07313755,94965.0,94910.0,0.01053629]
[1763308417305,0.00013535,94965.0,94950.0,0.53433167]
[1763308417510,0.00013535,94965.0,94951.0,0.02422]
[1763308417707,0.01052853,94980.0,94951.0,0.02422]
[1763308417911,0.01052631,95000.0,94970.0,0.01239]
[1763308418184,0.21058617,94973.0,94970.0,0.01139]
[1763308418565,0.21055184,94989.0,94971.0,0.02422]
[1763308418767,0.0105252,95010.0,94971.0,0.02422]
[1763308418768,0.21058721,94973.0,94971.0,0.02422]
[1763308418986,0.09935212,94988.0,94971.0,0.02422]
[1763308419150,0.2105826,94975.0,94971.0,0.02422]
[1763308419347,0.2105906,94971.0,94957.0,0.01239]
[1763308419557,0.53363274,94952.0,94951.0,0.00013535]
[1763308419753,0.21059281,94970.0,94951.0,0.00013535]
[1763308419754,0.21057286,94979.0,94952.0,0.02422]
[1763308419985,0.21055069,94989.0,94986.0,0.01239]
[1763308420164,0.210547,94991.0,94986.0,0.01239]
[1763308420421,0.210547,94991.0,94950.0,0.5648635]
[1763308420422,0.01052964,94970.0,94940.0,0.00999999]
[1763308420623,0.00381565,94952.0,94940.0,0.00999999]
[1763308420783,0.00381565,94952.0,94951.0,0.09935212]
[1763308420984,0.01052853,94980.0,94952.0,0.02422]
[1763308421183,0.21061161,94962.0,94952.0,0.02435535]
[1763308421372,0.21062286,94957.0,94952.0,0.02435535]
[1763308421571,0.09935212,94972.0,94952.0,0.02435535]
[1763308421771,0.21062706,94955.0,94952.0,0.02435535]
[1763308421971,0.21061721,94959.0,94952.0,0.02435535]
[1763308422371,0.21062386,94956.0,94952.0,0.02435535]
[1763308422613,0.323,94953.0,94952.0,0.00013535]
[1763308423657,0.323,94958.0,94953.0,0.02230285]
[1763308423839,0.21057844,94977.0,94955.0,0.09935212]
[1763308424049,0.01052631,95000.0,94967.0,0.53433167]
[1763308424386,0.01052631,95000.0,94955.0,0.09935212]
[1763308424387,0.21052202,95002.0,94990.0,0.53433167]
[1763308424666,0.21052202,95002.0,94986.0,0.01239]
[1763308425097,0.21052202,95002.0,94955.0,0.09935212]
[1763308425098,0.21056895,94981.0,94940.0,0.02053295]
[1763308425311,0.21053523,94996.0,94970.0,0.53433167]
[1763308425543,0.21053296,94997.0,94980.0,0.53433167]
[1763308425753,0.00045081,94996.0,94987.0,0.53433167]
[1763308426155,0.00045081,94996.0,94995.0,0.01239]
[1763308426705,0.00045081,94996.0,94990.0,0.09935212]
[1763308426706,0.00045081,94996.0,94990.0,0.09691817]
[1763308426914,0.00045081,94996.0,94990.0,0.05164963]
[1763308427152,0.21053739,94995.0,94991.0,0.02422]
[1763308427552,0.00045081,94996.0,94995.0,0.01239]
[1763308428185,0.00045081,94996.0,94995.0,0.0113831]
[1763308429522,0.02210707,94996.0,94995.0,0.0356031]
[1763308429979,0.02210707,94996.0,94995.0,0.04417078]
[1763308430197,0.02210707,94996.0,94995.0,0.01995078]
[1763308430430,0.02210707,94996.0,94995.0,0.00856768]
[1763308430639,0.02210707,94996.0,94995.0,0.00751323]
[1763308430846,0.02210707,94996.0,94995.0,0.00645878]
[1763308431059,0.02210707,94996.0,94995.0,0.0049771]
[1763308431311,0.02210707,94996.0,94995.0,0.00349542]
[1763308432477,0.23264225,94996.0,94995.0,0.00349542]
[1763308432830,0.21055459,94988.0,94985.0,0.01239]
[1763308432988,0.21055734,94986.0,94985.0,0.01239]
[1763308433311,0.02165626,94986.0,94985.0,0.01239]
[1763308434185,0.21055956,94985.0,94971.0,0.09935212]
[1763308434377,0.21056847,94981.0,94972.0,0.02422]
[1763308434573,0.02165626,94980.0,94972.0,0.02422]
[1763308434773,0.07347529,94996.0,94987.0,0.01148]
[1763308435002,0.21054847,94990.0,94987.0,0.01148]
[1763308435201,0.21061499,94960.0,94959.0,0.02422]
[1763308435646,0.09185898,94978.0,94968.0,0.01148]
[1763308435849,0.0227075,94990.0,94969.0,0.23165453]
[1763308436002,0.0105252,95010.0,94980.0,0.53433167]
[1763308436206,0.09935212,95003.0,94981.0,0.02105684]
[1763308436440,0.21052188,95002.0,94970.0,0.53433167]
[1763308436626,0.00045109,95003.0,94990.0,0.53433167]
[1763308436845,1.09e-06,95003.0,94993.0,0.09935212]
[1763308437378,1.09e-06,95003.0,94970.0,0.00999999]
[1763308437513,0.09935212,94996.0,94960.0,0.54433166]
[1763308437914,0.09935212,94996.0,94960.0,0.53433167]
[1763308438118,0.21057652,94978.0,94960.0,0.53433167]
[1763308438322,0.2105831,94975.0,94960.0,0.53433167]
[1763308438519,0.21058574,94974.0,94960.0,0.53433167]
[1763308438764,0.01052742,94990.0,94960.0,0.53433167]
[1763308438981,0.21057816,94977.0,94960.0,0.53433167]
[1763308439186,0.21058404,94974.0,94960.0,0.53433167]
[1763308439346,0.21057816,94977.0,94960.0,0.53433167]
[1763308439530,0.21055403,94988.0,94969.0,0.09935212]
[1763308439728,0.323,94999.0,94970.0,0.56186725]
[1763308439926,0.323,94999.0,94969.0,0.00045]
[1763308439927,0.21059012,94972.0,94969.0,0.00045]
[1763308440154,0.21059281,94970.0,94969.0,0.00045]
[1763308440433,0.21062476,94956.0,94940.0,0.53433167]
[1763308440634,0.21065048,94945.0,94944.0,0.03164276]
[1763308440836,0.01928877,94945.0,94944.0,0.03164276]
[1763308441039,0.20013766,94974.0,94944.0,0.02106504]
[1763308441040,0.18840766,94974.0,94944.0,0.02106504]
[1763308441240,0.18840766,94974.0,94942.0,0.01252535]
[1763308441241,0.18840766,94974.0,94943.0,0.03163841]
[1763308441443,0.18840766,94974.0,94950.0,0.00999999]
[1763308441743,0.210572,94980.0,94960.0,0.53433167]
[1763308441913,0.21059687,94969.0,94960.0,0.53433167]
[1763308442117,0.01052742,94990.0,94943.0,0.03163841]
[1763308442118,0.21063899,94950.0,94943.0,0.03163841]
[1763308442331,0.2106457,94947.0,94942.0,0.01252535]
[1763308442494,0.33352853,94980.0,94943.0,0.02106527]
[1763308442756,0.0105241,95020.0,94972.0,0.09935212]
[1763308442956,0.0105241,95020.0,94990.0,0.53433167]
[1763308442957,0.0105252,95010.0,94990.0,0.53433167]
[1763308443319,0.0105252,95010.0,94980.0,0.00999999]
[1763308443472,0.0105252,95010.0,94970.0,0.53433167]
[1763308443670,0.0105241,95020.0,94990.0,0.53433167]
[1763308443873,0.21052409,95001.0,95000.0,0.53433167]
[1763308444082,0.21052356,95002.0,94992.0,0.09935212]
[1763308444295,0.21050958,95008.0,94992.0,0.09935212]
[1763308444638,0.21049643,95014.0,94993.0,0.21054182]
[1763308444810,0.01097519,95020.0,94992.0,0.09935212]
[1763308445011,0.21049825,95013.0,94993.0,0.21054182]
[1763308445168,0.01097519,95020.0,94992.0,0.17508713]
[1763308445369,0.07500761,95014.0,94992.0,0.09935212]
[1763308445569,0.07500761,95015.0,94992.0,0.09935212]
[1763308445775,0.21052243,95002.0,94992.0,0.09935212]
[1763308445974,0.07500761,95009.0,94992.0,0.09935212]
[1763308446221,0.07500761,94999.0,94992.0,0.09935212]
[1763308446378,0.07500761,94999.0,94993.0,0.08447041]
[1763308446606,0.21054459,94992.0,94990.0,0.00024]
[1763308446807,0.0226296,94991.0,94990.0,0.00024]
[1763308447688,0.0226296,94991.0,94990.0,0.21078847]
[1763308448050,0.02308041,94991.0,94990.0,0.21078847]
[1763308448256,0.02308041,94991.0,94990.0,0.24113692]
[1763308449318,0.02308041,94991.0,94990.0,0.00024]
[1763308449488,0.02308041,94991.0,94980.0,0.53433167]
[1763308449733,0.03773355,94989.0,94981.0,0.09935212]
[1763308449936,0.0226296,94988.0,94970.0,0.53433167]
[1763308450142,0.03773627,94978.0,94971.0,0.2105906]
[1763308450334,0.06036587,94977.0,94974.0,0.21058394]
[1763308450546,0.00045081,94991.0,94972.0,0.07449223]
[1763308450547,0.06036587,94976.0,94972.0,0.07449223]
[1763308450721,0.0226296,94975.0,94971.0,0.2105906]